bitfinex/quotes_ETHUSD_20250827
["timestamp","ask_amount","ask_price","bid_price","bid_amount"]
[1756283748890,0.7779,4573.2,4573.1,0.197238]
[1756283749215,0.8875,4573.2,4572.7,2.18688621]
[1756283749377,1.47694215,4573.1,4572.7,2.18688621]
[1756283749592,0.3162,4572.8,4572.7,2.18688621]
[1756283749797,0.7767,4572.8,4572.7,2.18688621]
[1756283750922,0.0012,4573.2,4573.1,2.18670048]
[1756283751084,0.0012,4573.2,4573.1,6.49151433]
[1756283751284,0.0012,4573.2,4573.1,6.76254733]
[1756283751717,0.0012,4573.2,4573.1,6.46964733]
[1756283752318,0.0012,4573.2,4573.1,6.55729533]
[1756283753518,0.0012,4573.2,4573.1,6.85019533]
[1756283756485,0.0012,4573.2,4573.1,6.55729533]
[1756283757419,0.0012,4573.2,4573.1,2.82129533]
[1756283757624,0.0012,4573.2,4573.1,6.55729533]
[1756283759713,0.0012,4573.2,4573.1,6.85739533]
[1756283759911,0.0012,4573.2,4573.1,6.55629533]
[1756283760305,0.7592,4573.2,4573.1,0.197248]
[1756283760638,0.7592,4573.2,4573.0,2.18673452]
[1756283760859,0.3144,4573.2,4573.1,2.18670048]
[1756283761191,0.3144,4573.2,4572.9,0.1096]
[1756283761390,0.3144,4573.2,4573.0,2.18674748]
[1756283761626,0.4448,4573.1,4573.0,2.18674748]
[1756283761792,0.758,4573.1,4573.0,2.18674748]
[1756283763024,0.0012,4573.2,4573.1,2.18670048]
[1756283763433,0.0012,4573.2,4573.1,2.48780048]
[1756283763825,0.0012,4573.2,4573.1,2.50966748]
[1756283764615,0.0012,4573.2,4573.1,2.84376748]
[1756283764814,0.0012,4573.2,4573.1,3.71546495]
[1756283765332,0.0012,4573.2,4573.1,4.04956495]
[1756283765914,0.0004,4573.2,4573.1,3.69359795]
[1756283766424,0.0004,4573.2,4573.1,7.42759795]
[1756283771134,0.0004,4573.2,4573.1,7.76169795]
[1756283771330,0.0004,4573.2,4573.1,10.76169795]
[1756283771567,0.0004,4573.2,4573.1,10.84933095]
[1756283772083,0.0004,4573.2,4573.1,10.51523095]
[1756283772231,0.0004,4573.2,4573.1,10.84933095]
[1756283772667,0.0004,4573.2,4573.1,10.51523095]
[1756283773047,0.0004,4573.2,4573.1,10.62483095]
[1756283775871,0.0004,4573.2,4573.1,10.95893095]
[1756283776267,1e-08,4573.5,4573.4,2.18655704]
[1756283776439,1e-08,4573.5,4573.4,7.42406663]
[1756283776640,1e-08,4573.5,4573.4,7.70230106]
[1756283776852,1e-08,4573.5,4573.4,7.78993306]
[1756283777049,1e-08,4573.9,4573.7,2.18641362]
[1756283777250,1e-08,4573.9,4573.8,5.91836582]
[1756283777453,1e-08,4573.9,4573.8,7.13854376]
[1756283777775,1e-08,4573.9,4573.8,10.39054376]
[1756283778076,0.252,4574.0,4573.9,2.18631802]
[1756283778077,1e-08,4574.0,4573.9,2.18631802]
[1756283778453,1e-08,4574.0,4573.9,2.5082812]
[1756283778654,1e-08,4574.0,4573.9,2.5959042]
[1756283778859,1e-08,4574.0,4573.9,3.839339]
[1756283779178,1e-08,4574.0,4573.9,3.539239]
[1756283779378,0.31320001,4574.0,4573.9,3.51737582]
[1756283779578,0.75800001,4574.0,4573.9,3.51737582]
[1756283780274,1e-08,4574.0,4573.9,3.51737582]
[1756283781079,1e-08,4574.0,4573.9,3.81747582]
[1756283781274,1e-08,4574.2,4574.1,2.18622242]
[1756283781448,1e-08,4574.2,4574.1,7.30785336]
[1756283781650,1e-08,4574.2,4574.1,7.69569114]
[1756283783148,1e-08,4574.2,4574.1,7.39559114]
[1756283783444,0.31320001,4574.2,4574.1,7.39559114]
[1756283784071,0.75800001,4574.2,4574.1,7.39559114]
[1756283784873,1e-08,4574.2,4574.1,7.69569114]
[1756283785110,1e-08,4574.2,4574.1,7.39559114]
[1756283785677,1e-08,4574.2,4574.1,3.66359114]
[1756283785877,1e-08,4574.2,4574.1,7.39459114]
[1756283787114,1e-08,4574.3,4574.2,2.18617463]
[1756283787410,0.002,4574.5,4574.4,2.18607904]
[1756283787549,0.3596,4576.0,4574.4,2.18607904]
[1756283787550,0.4695,4575.8,4575.3,2.18564902]
[1756283787746,1e-08,4575.4,4575.3,5.91564902]
[1756283787979,1e-08,4575.4,4575.3,7.00348545]
[1756283788187,1e-08,4575.4,4575.3,7.47298545]
[1756283789196,1e-08,4575.4,4575.3,7.77018545]
[1756283789552,1e-08,4575.4,4575.3,7.47298545]
[1756283790095,1e-08,4575.4,4575.3,3.74298545]
[1756283790096,0.28830001,4575.4,4575.3,3.74298545]
[1756283790267,0.73780001,4575.4,4575.3,7.64061833]
[1756283790468,0.28750001,4575.4,4575.3,7.64061833]
[1756283790866,0.4495,4575.7,4575.5,2.18555349]
[1756283791068,0.4495,4575.7,4575.5,6.89817067]
[1756283791249,0.02,4575.8,4575.7,2.18545796]
[1756283791592,0.02,4575.8,4575.7,5.93731253]
[1756283791798,0.02,4575.8,4575.7,6.02505796]
[1756283791998,0.3083,4575.8,4575.7,6.02505796]
[1756283792357,0.02,4575.8,4575.7,6.02505796]
[1756283792549,0.02,4575.8,4575.7,6.94438082]
[1756283792754,0.3083,4575.8,4575.7,3.21438082]
[1756283793160,0.7578,4575.8,4575.7,6.02405796]
[1756283794174,0.7578,4575.8,4575.7,6.68099196]
[1756283794412,0.3083,4575.8,4575.7,6.68099196]
[1756283797286,0.3103,4575.8,4575.7,6.68099196]
[1756283797597,0.3103,4575.8,4575.7,2.95199196]
[1756283797776,0.3103,4575.8,4575.7,6.67999196]
[1756283797978,0.3103,4575.8,4575.7,7.5665465]
[1756283798171,0.022,4575.8,4575.7,7.5665465]
[1756283798825,0.002,4576.3,4576.2,2.18521917]
[1756283799114,0.4515,4576.3,4576.2,6.02281917]
[1756283799296,0.7398,4576.3,4576.2,6.02281917]
[1756283799490,0.7398,4576.3,4576.2,2.74431917]
[1756283799694,0.7398,4576.3,4576.2,6.47231917]
[1756283800221,0.7398,4576.3,4576.2,2.74431917]
[1756283803990,0.7398,4576.3,4576.2,6.47131917]
[1756283804195,0.7398,4576.3,4576.2,7.33697966]
[1756283805124,0.2903,4576.3,4576.2,7.33697966]
[1756283805920,0.002,4576.3,4576.2,7.63417966]
[1756283807129,0.022,4576.8,4576.7,2.18498044]
[1756283807316,0.022,4576.8,4576.7,6.12947848]
[1756283807510,0.022,4576.8,4576.7,6.42667848]
[1756283807709,0.4495,4577.5,4577.4,2.1846463]
[1756283807898,0.02,4577.8,4577.4,3.726]
[1756283808098,0.02,4577.8,4577.7,2.18450313]
[1756283808299,0.02,4577.8,4577.7,2.29410313]
[1756283808522,0.3083,4577.8,4577.7,2.29410313]
[1756283808731,0.7578,4577.8,4577.7,2.95084713]
[1756283809127,0.3083,4577.8,4577.7,2.95084713]
[1756283809605,0.3083,4577.8,4577.7,2.97269216]
[1756283809808,0.3083,4577.8,4577.7,2.95084713]
[1756283811129,0.02,4577.8,4577.7,3.69789478]
[1756283811331,0.3083,4577.8,4577.7,3.40069478]
[1756283811535,0.3083,4577.8,4577.7,2.95084713]
[1756283811831,0.02,4577.8,4577.7,2.95084713]
[1756283812198,0.02,4577.8,4577.7,3.24804713]
[1756283812399,0.02,4577.8,4577.7,2.95084713]
[1756283812603,0.3083,4577.8,4577.7,6.67584713]
[1756283812803,0.7578,4577.8,4577.7,6.67584713]
[1756283812999,0.02,4577.8,4577.7,6.67584713]
[1756283813204,0.02,4577.8,4577.7,7.85908891]
[1756283814027,0.25,4578.0,4577.9,2.18440769]
[1756283814210,1e-08,4578.0,4577.9,5.90840769]
[1756283814531,1e-08,4578.0,4577.9,11.10481735]
[1756283814734,1e-08,4578.0,4577.9,11.26894292]
[1756283814933,0.46870001,4578.8,4578.7,2.18402603]
[1756283815435,0.75700001,4578.8,4578.7,2.29362603]
[1756283815637,0.75700001,4578.8,4578.7,2.95017703]
[1756283815940,0.02120001,4578.8,4578.7,6.67417703]
[1756283816315,0.25,4579.0,4578.7,10.85720412]
[1756283816519,0.25,4579.0,4578.9,2.29273063]
[1756283816909,0.25,4579.0,4578.9,5.58993063]
[1756283817251,20.1,4580.0,4579.9,2.18345378]
[1756283817533,20.3883,4580.0,4579.9,2.18345378]
[1756283817733,20.3883,4580.0,4579.9,2.29225378]
[1756283817921,20.834,4580.0,4579.9,2.94865878]
[1756283819728,20.1,4580.0,4579.9,3.13635878]
[1756283820056,20.1,4580.0,4579.9,3.24515878]
[1756283820252,20.3856,4580.0,4579.9,2.94865878]
[1756283820452,20.8313,4580.0,4579.9,2.94865878]
[1756283821535,20.1,4580.0,4579.9,6.96815878]
[1756283821854,20.1,4580.0,4579.9,7.88332802]
[1756283822425,20.1,4580.0,4579.9,10.88332802]
[1756283823256,0.02,4580.8,4580.2,2.18331077]
[1756283823467,0.02,4580.8,4580.2,5.90531077]
[1756283823640,0.02,4580.8,4580.2,6.31061077]
[1756283823964,0.02,4580.8,4580.2,7.66056725]
[1756283824362,1e-08,4580.3,4580.2,11.25828248]
[1756283824780,1e-08,4580.3,4580.2,11.80398248]
[1756283825664,1e-08,4581.0,4580.9,2.18297714]
[1756283825966,1e-08,4581.0,4580.9,9.12227485]
[1756283826166,1e-08,4581.0,4580.9,9.96157485]
[1756283826329,1e-08,4581.0,4580.9,10.06157485]
[1756283828064,1e-08,4581.0,4580.9,5.90657485]
[1756283828379,1e-08,4581.0,4580.9,9.62757485]
[1756283828755,1e-08,4581.0,4580.9,5.90657485]
[1756283828956,1e-08,4581.0,4580.9,9.62757485]
[1756283829167,1e-08,4581.0,4580.9,10.06157485]
[1756283829892,1e-08,4581.0,4580.9,5.61007485]
[1756283830036,1e-08,4581.0,4580.9,9.62657485]
[1756283830694,1e-08,4581.0,4580.9,10.06057485]
[1756283830844,1e-08,4581.0,4580.9,9.62657485]
[1756283831784,1e-08,4581.0,4580.9,10.06057485]
[1756283831996,1e-08,4581.0,4580.9,9.62657485]
[1756283832796,1e-08,4581.0,4580.9,5.61007485]
[1756283833075,0.73130001,4581.0,4580.9,6.33007485]
[1756283833242,0.73130001,4581.0,4580.9,9.33007485]
[1756283833440,0.28760001,4581.0,4580.9,9.33007485]
[1756283833656,0.73330001,4581.0,4580.9,2.61007485]
[1756283833858,0.73330001,4581.0,4580.9,6.11177714]
[1756283834378,0.73330001,4581.0,4580.9,6.11077714]
[1756283834674,0.73330001,4581.0,4580.9,2.39177714]
[1756283834858,0.73330001,4581.0,4580.9,6.11077714]
[1756283836841,0.73330001,4581.0,4580.9,0.2088]
[1756283837045,0.73330001,4581.0,4580.9,0.1088]
[1756283837869,0.73330001,4581.0,4580.3,3.719]
[1756283837870,0.73330001,4581.0,4580.1,2.83970114]
[1756283838070,0.73330001,4581.0,4580.5,0.1088]
[1756283838071,0.46760356,4580.9,4580.5,0.1088]
[1756283838479,0.2856,4580.6,4580.0,3.719]
[1756283838686,0.46760356,4580.5,4580.2,0.1088]
[1756283838985,0.2856,4580.3,4580.0,0.1088]
[1756283839190,0.02190356,4580.2,4580.0,0.1088]
[1756283839479,0.7305,4580.1,4580.0,0.1088]
[1756283839978,0.7313,4580.1,4580.0,2.29220611]
[1756283841894,0.7313,4580.1,4580.0,0.1088]
[1756283842379,0.7313,4580.1,4579.8,0.1288]
[1756283843048,0.7313,4580.1,4579.8,2.31229238]
[1756283843248,0.4457,4580.0,4579.8,2.31229238]
[1756283843465,0.7313,4579.9,4579.8,2.31229238]
[1756283843747,0.1088,4580.3,4580.2,2.18331077]
[1756283843966,0.1088,4580.7,4580.4,2.18321543]
[1756283844179,0.2856,4580.5,4580.4,2.18321543]
[1756283844697,0.00200001,4581.0,4580.9,2.18297714]
[1756283845050,0.73330001,4581.0,4580.9,2.29177714]
[1756283845481,0.28760001,4581.0,4580.9,2.29177714]
[1756283845980,0.00200001,4581.0,4580.9,3.00245939]
[1756283846148,0.00200001,4581.0,4580.9,3.11125939]
[1756283846480,0.28760001,4581.0,4580.9,3.11125939]
[1756283846778,0.73330001,4581.0,4580.9,3.11125939]
[1756283846950,0.28760001,4581.0,4580.9,3.11125939]
[1756283847149,0.00200001,4581.0,4580.9,3.11125939]
[1756283847743,0.76940001,4581.0,4580.9,6.83125939]
[1756283847948,0.00200001,4581.0,4580.9,7.27695939]
[1756283848257,0.76940001,4581.0,4580.9,6.45747714]
[1756283848590,0.76940001,4581.0,4580.9,6.01177714]
[1756283848982,0.76940001,4581.0,4580.9,2.29177714]
[1756283850465,0.76940001,4581.0,4579.8,0.02]
[1756283850671,0.1088,4580.8,4579.8,0.02]
[1756283850880,0.465,4580.7,4580.4,2.18317352]
[1756283851105,0.465,4580.6,4580.5,2.18314836]
[1756283851276,0.00200001,4581.0,4580.5,2.18314836]
[1756283851277,0.00200001,4581.0,4580.8,0.001]
[1756283851459,0.7674,4580.9,4580.8,2.18401287]
[1756283851659,0.7674,4580.9,4580.8,0.001]
[1756283851855,1.01224,4580.9,4580.8,0.001]
[1756283852073,1.12104,4580.9,4580.8,0.001]
[1756283852261,3.3259207,4580.9,4580.8,0.001]
[1756283852457,3.30401714,4580.9,4580.8,0.001]
[1756283852678,6.30401714,4580.9,4580.8,0.001]
[1756283852980,10.02301714,4580.9,4580.8,0.001]
[1756283857253,24.34613791,4580.9,4580.8,0.001]
[1756283858455,10.68301714,4580.9,4580.8,0.001]
[1756283858857,10.02301714,4580.9,4580.8,0.001]
[1756283859058,10.36569695,4580.9,4580.8,0.001]
[1756283862163,17.35489694,4580.9,4580.8,0.001]
[1756283863197,13.63489694,4580.9,4580.8,0.001]
[1756283863401,17.35489694,4580.9,4580.8,0.001]
[1756283863835,17.35409694,4580.9,4580.8,0.001]
[1756283864194,17.35409694,4580.9,4580.3,1e-08]
[1756283864195,0.66,4580.6,4580.3,1e-08]
[1756283864521,5.84345378,4579.9,4579.8,0.021]
[1756283864695,11.54785378,4579.9,4579.8,0.021]
[1756283864894,7.97116677,4579.9,4579.8,0.021]
[1756283865091,7.50616677,4579.9,4579.8,0.021]
[1756283865304,10.88785378,4579.9,4579.8,0.021]
[1756283865503,10.88885378,4579.9,4579.8,0.021]
[1756283865724,11.35385378,4579.9,4579.8,0.021]
[1756283866098,12.01385378,4579.9,4579.8,0.021]
[1756283866305,25.67697455,4579.9,4579.8,0.021]
[1756283866700,12.01585378,4579.9,4579.8,0.021]
[1756283866918,11.35585378,4579.9,4579.8,0.021]
[1756283868619,11.69759855,4579.9,4579.8,0.021]
[1756283869699,26.02071932,4579.9,4579.8,0.021]
[1756283870827,22.29471932,4579.9,4579.8,0.021]
[1756283871136,33.00791931,4579.9,4579.8,0.021]
[1756283871726,28.62391931,4579.9,4579.8,0.021]
[1756283871931,32.34791931,4579.9,4579.8,0.021]
[1756283872133,12.00994476,4579.9,4579.8,0.3372]
[1756283872430,17.91639854,4579.9,4579.8,0.3372]
[1756283872903,18.68379854,4579.9,4579.8,0.021]
[1756283873097,20.77051448,4579.9,4579.8,0.021]
[1756283874327,20.87931448,4579.9,4579.8,0.021]
[1756283876832,20.41431448,4579.9,4579.8,0.021]
[1756283877214,20.87931448,4579.9,4579.8,0.021]
[1756283878736,21.53931448,4579.9,4579.8,0.021]
[1756283882040,2.18383525,4579.1,4579.0,0.001]
[1756283882366,5.84393063,4578.9,4578.8,0.001]
[1756283882510,2.18407373,4578.6,4578.0,0.001]
[1756283882851,9.81947417,4578.6,4578.0,0.001]
[1756283883049,10.10477417,4578.6,4578.0,0.001]
[1756283883214,10.55927417,4578.6,4578.0,0.001]
[1756283883415,16.82009192,4578.6,4578.0,0.001]
[1756283885422,10.55927417,4578.6,4578.0,0.001]
[1756283886357,6.09647417,4578.6,4578.0,0.001]
[1756283886559,6.8306,4578.6,4578.5,0.2885]
[1756283886723,6.8306,4578.6,4578.5,0.7299]
[1756283887318,3.1096,4578.6,4578.5,0.2885]
[1756283887539,6.8306,4578.6,4578.5,0.7299]
[1756283888428,6.8298,4578.6,4578.5,0.7299]
[1756283891449,10.40273761,4578.6,4578.5,0.001]
[1756283891860,13.3856376,4578.6,4578.5,0.2885]
[1756283892153,17.1076376,4578.6,4578.5,0.2885]
[1756283892354,12.28207372,4578.6,4578.5,0.2885]
[1756283892557,16.00407372,4578.6,4578.5,0.2885]
[1756283892922,12.28207372,4578.6,4578.5,0.2885]
[1756283893124,16.00407372,4578.6,4578.5,0.2885]
[1756283893424,18.31035989,4578.6,4578.5,0.001]
[1756283893633,18.76485989,4578.6,4578.5,0.001]
[1756283894447,18.31035989,4578.6,4578.5,0.001]
[1756283894847,18.76485989,4578.6,4578.5,0.001]
[1756283896330,18.31035989,4578.6,4578.5,0.001]
[1756283897055,14.58835989,4578.6,4578.5,0.001]
[1756283897358,18.76485989,4578.6,4578.5,0.001]
[1756283897925,19.10669824,4578.6,4578.5,0.001]
[1756283898332,10.43983834,4578.6,4578.5,0.7299]
[1756283898664,0.45143835,4578.6,4578.5,2.91402143]
[1756283898859,4.06383835,4578.6,4578.5,2.91402143]
[1756283899058,3.722,4578.6,4578.5,2.91402143]
[1756283899763,3.722,4578.6,4578.5,0.7299]
[1756283900550,3.722,4578.6,4578.5,2.91402143]
[1756283901179,3.722,4578.6,4578.5,0.2885]
[1756283901359,3.8316,4578.6,4578.5,0.2885]
[1756283902744,7.07053711,4578.6,4578.5,0.001]
[1756283902962,7.52503711,4578.6,4578.5,0.001]
[1756283903162,10.52503711,4578.6,4578.5,0.001]
[1756283903550,10.4123582,4578.6,4578.5,0.001]
[1756283903937,7.17342109,4578.6,4578.5,0.2885]
[1756283904272,3.45142109,4578.6,4578.5,0.2885]
[1756283904477,3.8316,4578.6,4578.5,0.7299]
[1756283904771,3.8316,4578.6,4578.5,0.2885]
[1756283904976,6.01567373,4578.6,4578.5,0.2885]
[1756283905174,6.01567373,4578.6,4578.5,0.001]
[1756283905544,7.28893966,4578.6,4578.5,0.001]
[1756283906563,6.30097373,4578.6,4578.5,0.001]
[1756283907073,9.30097373,4578.6,4578.5,0.001]
[1756283907284,9.75547373,4578.6,4578.5,0.001]
[1756283908074,6.8316,4578.6,4578.5,0.001]
[1756283908444,6.8316,4578.6,4578.5,0.299]
[1756283908693,3.8316,4578.6,4578.5,0.7444]
[1756283909350,3.8316,4578.6,4578.5,2.92852143]
[1756283909546,3.722,4578.6,4578.5,3.43979522]
[1756283909973,3.722,4578.6,4578.5,0.7444]
[1756283910173,3.722,4578.6,4578.5,2.92852143]
[1756283910374,0.1088,4578.8,4578.5,2.92852143]
[1756283910569,3.722,4578.7,4578.5,2.48312143]
[1756283910774,3.722,4578.7,4578.6,0.4454]
[1756283910971,3.722,4578.7,4578.5,2.48312143]
[1756283911185,3.722,4578.7,4578.5,2.92852143]
[1756283911382,3.722,4578.7,4578.6,2.18407373]
[1756283911557,3.722,4578.7,4578.6,2.92747373]
[1756283911960,0.1088,4578.8,4578.6,0.298]
[1756283912161,3.722,4578.7,4578.6,2.92747373]
[1756283912853,3.7212,4578.7,4578.6,2.92747373]
[1756283913050,3.721,4578.7,4578.6,0.7434]
[1756283913254,3.721,4578.7,4578.6,2.92747373]
[1756283913451,3.721,4578.7,4578.6,0.298]
[1756283914484,3.721,4578.7,4578.5,0.001]
[1756283915063,3.721,4578.7,4578.6,0.298]
[1756283916680,3.721,4578.7,4578.5,0.001]
[1756283916985,0.02190356,4578.6,4578.5,0.001]
[1756283917412,3.721,4578.7,4578.5,0.299]
[1756283917564,3.721,4578.7,4578.5,0.001]
[1756283917903,0.1096,4578.6,4578.5,0.001]
[1756283918386,0.1096,4578.6,4578.5,0.299]
[1756283919349,3.721,4578.7,4578.5,2.92852143]
[1756283919554,3.721,4578.7,4578.6,2.62947373]
[1756283919755,3.721,4578.7,4578.6,2.92747373]
[1756283920355,3.721,4578.7,4578.6,0.7434]
[1756283920881,3.721,4578.7,4578.6,0.298]
[1756283921476,3.723,4578.7,4578.6,0.298]
[1756283922388,3.723,4578.7,4578.5,0.001]
[1756283922686,3.721,4578.6,4578.5,0.001]
[1756283923275,4.4782,4578.6,4578.5,0.001]
[1756283923706,4.0214,4578.6,4578.5,0.001]
[1756283924693,6.66227373,4578.6,4578.5,0.001]
[1756283925189,5.90507373,4578.6,4578.5,0.001]
[1756283925391,10.65026062,4578.6,4578.5,0.001]
[1756283925798,6.92926062,4578.6,4578.5,0.001]
[1756283925999,10.65026062,4578.6,4578.5,0.001]
[1756283926966,6.92926062,4578.6,4578.5,0.001]
[1756283927166,10.65026062,4578.6,4578.5,0.001]
[1756283929304,10.99211947,4578.6,4578.5,0.001]
[1756283929502,11.65211947,4578.6,4578.5,0.001]
[1756283930298,18.64131946,4578.6,4578.5,0.001]
[1756283931021,14.26031946,4578.6,4578.5,0.001]
[1756283931230,16.34573257,4578.6,4578.5,0.001]
[1756283931585,12.62473257,4578.6,4578.5,0.001]
[1756283931885,16.34573257,4578.6,4578.5,0.001]
[1756283932820,12.62473257,4578.6,4578.5,0.001]
[1756283932997,16.34473257,4578.6,4578.5,0.001]
[1756283933389,18.66620535,4578.6,4578.5,0.001]
[1756283933589,18.36580535,4578.6,4578.5,0.001]
[1756283933900,12.62473257,4578.6,4578.5,0.299]
[1756283934207,16.00387372,4578.6,4578.5,0.299]
[1756283934407,16.00387372,4578.6,4578.5,0.001]
[1756283934609,16.30427372,4578.6,4578.5,0.001]
[1756283935127,16.00387372,4578.6,4578.5,0.001]
[1756283935720,18.29126061,4578.6,4578.5,0.001]
[1756283936024,18.74806061,4578.6,4578.5,0.001]
[1756283937283,14.26906061,4578.6,4578.5,0.001]
[1756283937506,17.98906061,4578.6,4578.5,0.001]
[1756283938210,16.00207372,4578.6,4578.5,0.3062]
[1756283938941,16.34388965,4578.6,4578.5,0.3062]
[1756283939334,16.34388965,4578.6,4578.5,0.001]
[1756283941155,0.45141593,4578.6,4578.5,0.3062]
[1756283941356,3.8296,4578.6,4578.5,2.94742143]
[1756283941518,3.72,4578.6,4578.5,3.4605849]
[1756283941845,3.72,4578.6,4578.5,3.5701849]
[1756283942162,0.002,4578.7,4578.6,2.18407373]
[1756283942331,3.722,4578.7,4578.6,2.64117373]
[1756283942515,3.722,4578.7,4578.6,3.52179959]
[1756283942714,0.002,4578.7,4578.6,3.52179959]
[1756283943009,0.002,4578.7,4578.6,3.54364032]
[1756283944037,0.002,4578.7,4578.6,3.52179959]
[1756283944617,0.002,4578.7,4578.6,3.54364032]
[1756283945146,0.002,4578.7,4578.6,3.52179959]
[1756283948337,0.002,4578.7,4578.5,0.1106]
[1756283948646,3.719,4578.6,4578.5,0.001]
[1756283949251,3.719,4578.6,4578.5,2.18512143]
[1756283949452,3.719,4578.6,4578.5,2.49032143]
[1756283949956,4.4763,4578.6,4578.5,0.001]
[1756283950113,4.87030356,4578.6,4578.5,0.001]
[1756283950314,7.03247373,4578.6,4578.5,0.001]
[1756283950534,10.03247373,4578.6,4578.5,0.001]
[1756283952219,6.31347373,4578.6,4578.5,0.001]
[1756283952420,10.03247373,4578.6,4578.5,0.001]
[1756283953944,24.378384,4578.6,4578.5,0.001]
[1756283954148,24.378384,4578.6,4578.5,1e-08]
[1756283954654,24.378384,4578.6,4578.5,2.94642144]
[1756283954655,1.68,4578.6,4578.5,2.94642144]
[1756283955045,3.403,4578.6,4578.5,0.96188901]
[1756283955344,5.399,4578.6,4578.5,3.60311044]
[1756283956022,5.399,4578.6,4578.5,3.14601044]
[1756283956452,1.68,4578.6,4578.5,3.14601044]
[1756283956622,1.68,4578.6,4578.5,4.13613287]
[1756283956825,4.739,4578.6,4578.5,3.60311044]
[1756283957125,4.741,4578.6,4578.5,3.14601044]
[1756283957346,1.682,4578.6,4578.5,3.14601044]
[1756283957722,4.745,4578.6,4578.5,3.14601044]
[1756283958267,5.0561,4578.6,4578.5,0.65668901]
[1756283958471,2.49891,4578.6,4578.5,0.65668901]
[1756283958776,5.7111,4578.6,4578.5,1e-08]
[1756283959356,1.9931,4578.6,4578.5,1e-08]
[1756283959649,5.4,4578.6,4578.5,1e-08]
[1756283959849,1.682,4578.6,4578.5,1e-08]
[1756283960063,5.4,4578.6,4578.5,1e-08]
[1756283960269,5.7111,4578.6,4578.5,1e-08]
[1756283960991,1.9931,4578.6,4578.5,1e-08]
[1756283961469,5.7111,4578.6,4578.5,1e-08]
[1756283961838,5.7103,4578.6,4578.5,1e-08]
[1756283962660,1.9923,4578.6,4578.5,1e-08]
[1756283963169,5.7103,4578.6,4578.5,1e-08]
[1756283963474,6.1565,4578.6,4578.5,1e-08]
[1756283964043,12.00156356,4578.6,4578.5,1e-08]
[1756283964361,6.09948983,4578.6,4578.5,1e-08]
[1756283964561,12.11116356,4578.6,4578.5,1e-08]
[1756283965753,12.77116356,4578.6,4578.5,1e-08]
[1756283966578,12.11116356,4578.6,4578.5,1e-08]
[1756283966955,8.39316356,4578.6,4578.5,1e-08]
[1756283967459,12.11116356,4578.6,4578.5,1e-08]
[1756283968043,12.45299782,4578.6,4578.5,1e-08]
[1756283968547,10.26892409,4578.6,4578.5,1e-08]
[1756283968747,12.45799782,4578.6,4578.5,1e-08]
[1756283968977,8.73999782,4578.6,4578.5,1e-08]
[1756283969313,12.45799782,4578.6,4578.5,1e-08]
[1756283970083,8.73999782,4578.6,4578.5,1e-08]
[1756283970278,12.45799782,4578.6,4578.5,1e-08]
[1756283970789,8.73999782,4578.6,4578.5,1e-08]
[1756283970989,12.45799782,4578.6,4578.5,1e-08]
[1756283971500,8.73999782,4578.6,4578.5,1e-08]
[1756283971699,0.45343426,4578.6,4578.5,0.31630001]
[1756283971899,3.8296,4578.6,4578.5,2.97462144]
[1756283972208,3.72,4578.6,4578.5,3.06217944]
[1756283972408,3.72,4578.6,4578.5,3.58681852]
[1756283972611,4.016,4578.6,4578.5,1e-08]
[1756283972910,3.72,4578.6,4578.5,1e-08]
[1756283973119,3.72,4578.6,4578.5,0.31630001]
[1756283973324,0.002,4578.6,4578.5,0.31630001]
[1756283973620,3.72,4578.6,4578.5,0.31630001]
[1756283975907,0.002,4578.6,4578.5,2.50042144]
[1756283976226,0.002,4578.6,4578.5,0.31630001]
[1756283976388,3.72,4578.6,4578.5,0.31630001]
[1756283977711,6.22197729,4578.6,4578.5,1e-08]
[1756283977883,8.30799281,4578.6,4578.5,1e-08]
[1756283978084,10.49206654,4578.6,4578.5,1e-08]
[1756283978696,8.30799281,4578.6,4578.5,1e-08]
[1756283978904,10.49206654,4578.6,4578.5,1e-08]
[1756283981941,6.77406654,4578.6,4578.5,1e-08]
[1756283982124,10.60166654,4578.6,4578.5,1e-08]
[1756283982332,6.88366654,4578.6,4578.5,1e-08]
[1756283982517,10.60166654,4578.6,4578.5,1e-08]
[1756283982714,7.96639281,4578.6,4578.5,1e-08]
[1756283982901,10.15046654,4578.6,4578.5,1e-08]
[1756283983434,10.60166654,4578.6,4578.5,1e-08]
[1756283983618,10.15046654,4578.6,4578.5,1e-08]
[1756283983948,3.1116,4578.6,4578.5,1e-08]
[1756283984119,6.8296,4578.6,4578.5,1e-08]
[1756283984322,9.30967373,4578.6,4578.5,1e-08]
[1756283984503,5.59167373,4578.6,4578.5,1e-08]
[1756283984704,7.1256,4578.6,4578.5,1e-08]
[1756283984936,6.8296,4578.6,4578.5,1e-08]
[1756283985434,3.1116,4578.6,4578.5,1e-08]
[1756283985740,9.01367373,4578.6,4578.5,1e-08]
[1756283986245,9.01287373,4578.6,4578.5,1e-08]
[1756283987413,3.1108,4578.6,4578.5,1e-08]
[1756283987656,3.1108,4578.6,4578.5,0.31630001]
[1756283987851,6.8288,4578.6,4578.5,0.31630001]
[1756283988216,6.8288,4578.6,4578.5,1e-08]
[1756283989041,9.65065059,4578.6,4578.5,1e-08]
[1756283989246,7.46657686,4578.6,4578.5,1e-08]
[1756283989442,7.17057686,4578.6,4578.5,1e-08]
[1756283989648,0.45257686,4578.6,4578.5,0.31630001]
[1756283989818,3.8288,4578.6,4578.5,0.79050001]
[1756283990164,0.1108,4578.6,4578.5,0.31630001]
[1756283990451,3.8288,4578.6,4578.5,0.31630001]
[1756283991550,0.1108,4578.6,4578.5,0.31630001]
[1756283991851,3.8288,4578.6,4578.5,0.31630001]
[1756283992751,0.1108,4578.6,4578.5,0.31630001]
[1756283992931,3.8288,4578.6,4578.5,0.31630001]
[1756283993132,0.1108,4578.6,4578.5,0.31630001]
[1756283993354,3.8288,4578.6,4578.5,0.31630001]